bitfinex/quotes_BTCUSD_20240906
["timestamp","ask_amount","ask_price","bid_price","bid_amount"]
[1725614250381,0.67056636,55904.0,55903.0,0.11989913]
[1725614250588,0.67056636,55904.0,55903.0,0.12089913]
[1725614251643,0.67056636,55904.0,55903.0,0.01719913]
[1725614252065,0.67056636,55904.0,55903.0,0.002]
[1725614252283,0.67138136,55904.0,55903.0,0.01719913]
[1725614252729,0.28139924,55904.0,55903.0,0.01719913]
[1725614253156,0.46027724,55904.0,55903.0,0.01719913]
[1725614253424,0.81803324,55904.0,55903.0,0.01719913]
[1725614253670,0.92545581,55904.0,55903.0,0.01719913]
[1725614253881,1.35771181,55904.0,55903.0,0.002]
[1725614254139,1.8362781,55904.0,55903.0,0.001]
[1725614254344,2.02041578,55904.0,55903.0,0.001]
[1725614254560,1.8592781,55904.0,55903.0,0.003]
[1725614254780,1.88146592,55904.0,55903.0,0.003]
[1725614255477,2.04256252,55904.0,55903.0,0.003]
[1725614255703,1.99143129,55904.0,55903.0,0.003]
[1725614255912,1.99143129,55904.0,55903.0,0.001]
[1725614256140,1.609987,55901.0,55900.0,0.00163]
[1725614256382,1.9449057,55901.0,55900.0,0.00163]
[1725614258375,1.9682057,55901.0,55900.0,0.00163]
[1725614259062,2.04233693,55901.0,55900.0,0.00163]
[1725614259329,1.9912057,55901.0,55900.0,0.00163]
[1725614262900,2.89639013,55901.0,55900.0,0.00163]
[1725614263112,3.07942738,55901.0,55900.0,0.00163]
[1725614263377,3.09942738,55901.0,55900.0,0.00163]
[1725614263610,2.91839013,55901.0,55900.0,0.00163]
[1725614263824,1.610361,55888.0,55887.0,0.001632]
[1725614264040,1.9685797,55888.0,55887.0,0.001632]
[1725614264268,1.78779449,55888.0,55887.0,0.01687217]
[1725614264514,1.9452797,55888.0,55887.0,0.01687217]
[1725614264736,1.9452797,55888.0,55887.0,0.001632]
[1725614264971,2.02271148,55888.0,55887.0,0.001632]
[1725614265190,2.48806948,55888.0,55887.0,0.001632]
[1725614265410,2.64895628,55888.0,55887.0,0.001632]
[1725614265623,2.06901148,55888.0,55887.0,0.001632]
[1725614266103,1.9915797,55888.0,55887.0,0.001632]
[1725614266366,2.0005797,55888.0,55887.0,0.001632]
[1725614266802,1.9685797,55888.0,55887.0,0.001632]
[1725614267066,1.73031952,55888.0,55887.0,0.002632]
[1725614267322,1.73031952,55888.0,55887.0,0.29804]
[1725614267323,0.018,55888.0,55887.0,0.29804]
[1725614267538,0.196929,55888.0,55887.0,0.29804]
[1725614267776,0.018,55888.0,55887.0,0.31328017]
[1725614268011,0.196929,55888.0,55887.0,0.29804]
[1725614268217,0.196929,55888.0,55887.0,0.31328017]
[1725614268662,0.554787,55888.0,55887.0,0.31328017]
[1725614269138,0.187929,55888.0,55887.0,0.31228017]
[1725614269398,0.178929,55888.0,55887.0,0.31128017]
[1725614270098,0.357856,55889.0,55887.0,0.31128017]
[1725614270099,0.178926,55889.0,55888.0,0.2223]
[1725614270339,0.278926,55889.0,55888.0,0.2223]
[1725614270575,0.636778,55889.0,55888.0,0.2223]
[1725614270810,0.99463,55889.0,55888.0,0.2223]
[1725614271044,0.636778,55889.0,55888.0,0.2223]
[1725614271740,0.99463,55889.0,55888.0,0.2223]
[1725614272008,0.636778,55889.0,55888.0,0.2223]
[1725614272464,0.636778,55889.0,55888.0,0.2233]
[1725614272688,0.636778,55889.0,55888.0,0.2243]
[1725614272934,1.352482,55889.0,55888.0,0.23953761]
[1725614273188,1.352482,55889.0,55888.0,0.2243]
[1725614273427,1.42841153,55889.0,55888.0,0.2243]
[1725614274125,1.333726,55889.0,55888.0,0.1306]
[1725614274377,1.333726,55889.0,55888.0,0.002]
[1725614274887,1.691578,55889.0,55888.0,0.002]
[1725614275101,1.41405959,55889.0,55888.0,0.002]
[1725614275327,1.691578,55889.0,55888.0,0.002]
[1725614275540,1.714878,55889.0,55888.0,0.002]
[1725614275806,1.79521159,55889.0,55888.0,0.002]
[1725614276030,1.714878,55889.0,55888.0,0.002]
[1725614276519,1.43735959,55889.0,55888.0,0.002]
[1725614276710,1.357026,55889.0,55888.0,0.002]
[1725614276846,1.333726,55889.0,55888.0,0.002]
[1725614277060,1.38726086,55889.0,55888.0,0.002]
[1725614277280,1.333726,55889.0,55888.0,0.002]
[1725614277474,1.333726,55889.0,55888.0,0.00363]
[1725614277679,1.333726,55889.0,55888.0,0.23163]
[1725614279130,1.37486871,55889.0,55888.0,0.23163]
[1725614279494,1.352482,55889.0,55888.0,0.23163]
[1725614280564,0.99463,55889.0,55888.0,0.23163]
[1725614281969,0.1,55889.0,55888.0,0.24686761]
[1725614282195,0.1,55889.0,55888.0,0.32440059]
[1725614282328,0.278921,55891.0,55888.0,0.09640059]
[1725614282525,0.1,55891.0,55888.0,0.01886761]
[1725614282742,0.178919,55891.0,55890.0,0.2167]
[1725614282947,0.636758,55891.0,55890.0,0.23193248]
[1725614283808,0.638758,55891.0,55890.0,0.23193248]
[1725614284017,0.639758,55891.0,55890.0,0.23193248]
[1725614284239,0.637758,55891.0,55890.0,0.23193248]
[1725614284488,0.001,55891.0,55890.0,0.31015682]
[1725614284704,0.001,55891.0,55890.0,0.48907882]
[1725614284916,0.001,55891.0,55890.0,0.84692382]
[1725614285114,0.003,55891.0,55890.0,0.84692382]
[1725614285332,0.002,55891.0,55890.0,0.84692382]
[1725614285786,0.003,55891.0,55890.0,1.20476882]
[1725614286239,0.002,55891.0,55890.0,1.20476882]
[1725614286463,0.178891,55900.0,55894.0,0.178908]
[1725614286704,0.178894,55899.0,55896.0,0.2208]
[1725614286935,0.178894,55899.0,55897.0,0.23601452]
[1725614287158,0.178894,55899.0,55898.0,0.2208]
[1725614287363,0.278894,55899.0,55898.0,0.29716363]
[1725614287564,0.278894,55899.0,55898.0,0.31237558]
[1725614287983,0.637682,55899.0,55898.0,0.31237558]
[1725614288201,0.1,55899.0,55898.0,0.31237558]
[1725614288437,0.1,55900.0,55899.0,0.2162]
[1725614288657,0.278893,55900.0,55899.0,0.29256363]
[1725614288868,0.278893,55900.0,55899.0,0.30777302]
[1725614289310,0.1,55900.0,55899.0,0.30777302]
[1725614289525,0.278881,55903.0,55900.0,0.2162]
[1725614289738,0.278881,55903.0,55901.0,0.01520426]
[1725614290160,0.178884,55902.0,55901.0,0.01520426]
[1725614290367,0.278884,55902.0,55901.0,0.01520426]
[1725614290825,0.636652,55902.0,55901.0,0.01520426]
[1725614291036,0.178887,55901.0,55900.0,0.2162]
[1725614291236,0.278887,55901.0,55900.0,0.2162]
[1725614291450,0.278887,55901.0,55900.0,0.23140682]
[1725614291658,0.278887,55901.0,55900.0,0.2162]
[1725614292095,0.278887,55901.0,55900.0,0.23140682]
[1725614292973,0.636662,55901.0,55900.0,0.23140682]
[1725614293464,0.638662,55901.0,55900.0,0.24540682]
[1725614293688,0.996437,55901.0,55900.0,0.24540682]
[1725614293900,1.354212,55901.0,55900.0,0.2302]
[1725614294113,1.354212,55901.0,55900.0,0.1332]
[1725614296325,1.40773915,55901.0,55900.0,0.1332]
[1725614297606,1.40778223,55901.0,55900.0,0.1332]
[1725614298539,1.354212,55901.0,55900.0,0.1332]
[1725614298735,1.40778689,55901.0,55900.0,0.1332]
[1725614299484,1.354212,55901.0,55900.0,0.1332]
[1725614300424,1.40778939,55901.0,55900.0,0.1332]
[1725614301124,1.354212,55901.0,55900.0,0.1332]
[1725614301383,1.43450272,55901.0,55900.0,0.1332]
[1725614302072,1.40778903,55901.0,55900.0,0.1332]
[1725614303930,1.40860403,55901.0,55900.0,0.1332]
[1725614304160,1.355027,55901.0,55900.0,0.1332]
[1725614305311,1.79309272,55901.0,55900.0,0.014]
[1725614305544,1.712802,55901.0,55900.0,0.014]
[1725614306227,1.81896065,55901.0,55900.0,0.007]
[1725614306726,1.81896065,55901.0,55900.0,0.012]
[1725614307421,1.711802,55901.0,55900.0,0.012]
[1725614307893,1.353027,55901.0,55900.0,0.223]
[1725614308135,0.995252,55901.0,55900.0,0.223]
[1725614308350,1.04881874,55901.0,55900.0,0.228]
[1725614308809,1.04881824,55901.0,55900.0,0.228]
[1725614309473,0.69104324,55901.0,55900.0,0.228]
[1725614309693,0.74401234,55901.0,55900.0,0.228]
[1725614309931,0.716365,55901.0,55900.0,0.228]
[1725614310154,0.895252,55901.0,55900.0,0.228]
[1725614311944,0.637477,55901.0,55900.0,0.228]
[1725614312367,0.69104324,55901.0,55900.0,0.24320682]
[1725614313710,0.69107809,55901.0,55900.0,0.24320682]
[1725614315792,0.33330309,55901.0,55900.0,0.24320682]
[1725614316171,0.279702,55901.0,55900.0,0.24320682]
[1725614316388,0.637477,55901.0,55900.0,0.24320682]
[1725614316798,0.637477,55901.0,55900.0,0.228]
[1725614318367,0.637477,55901.0,55900.0,0.24320682]
[1725614319312,0.69107809,55901.0,55900.0,0.24320682]
[1725614319749,0.69107809,55901.0,55900.0,0.228]
[1725614319965,0.69107809,55901.0,55900.0,0.24320682]
[1725614321060,0.637477,55901.0,55900.0,0.24320682]
[1725614323353,0.71787864,55901.0,55900.0,0.24320682]
[1725614324428,0.71787864,55901.0,55900.0,0.24985183]
[1725614324858,1.07565364,55901.0,55900.0,0.24985183]
[1725614325077,1.31057234,55901.0,55900.0,0.03185183]
[1725614325319,1.69514789,55901.0,55900.0,0.03185183]
[1725614325567,1.69514789,55901.0,55900.0,0.01]
[1725614325799,1.63907693,55901.0,55900.0,0.01]
[1725614326015,1.6653199,55901.0,55900.0,0.01]
[1725614326931,1.82612318,55901.0,55900.0,0.01]
[1725614327140,1.68208776,55901.0,55900.0,0.01]
[1725614329562,2.03986276,55901.0,55900.0,0.011632]
[1725614329786,1.68208776,55901.0,55900.0,0.011632]
[1725614330026,1.44716906,55901.0,55900.0,0.011632]
[1725614330267,1.08939406,55901.0,55900.0,0.235532]
[1725614330476,1.44716906,55901.0,55900.0,0.235532]
[1725614330911,1.36979486,55901.0,55900.0,0.235532]
[1725614333268,1.01201986,55901.0,55900.0,0.235532]
[1725614333684,1.01201986,55901.0,55900.0,0.25738384]
[1725614333903,1.01201986,55901.0,55900.0,0.235532]
[1725614334368,1.01201986,55901.0,55900.0,0.25738384]
[1725614338918,1.4982964,55901.0,55900.0,0.03348384]
[1725614339148,1.65954442,55901.0,55900.0,0.011632]
[1725614340075,1.44716517,55901.0,55900.0,0.011632]
[1725614340528,1.60841319,55901.0,55900.0,0.011632]
[1725614340992,1.44716517,55901.0,55900.0,0.00186638]
[1725614344552,1.43039731,55901.0,55900.0,0.00186638]
[1725614344841,1.44716902,55901.0,55900.0,0.00186638]
[1725614345542,1.36979871,55901.0,55900.0,0.00186638]
[1725614349822,1.44719764,55901.0,55900.0,0.00186638]
[1725614350044,1.36979871,55901.0,55900.0,0.00186638]
[1725614350281,1.60844915,55901.0,55900.0,0.00186638]
[1725614350544,1.92071934,55901.0,55900.0,0.00186638]
[1725614350773,2.33349434,55901.0,55900.0,0.00186638]
[1725614351019,2.38259434,55901.0,55900.0,0.00186638]
[1725614351239,2.37598339,55901.0,55900.0,0.00186638]
[1725614351708,1.610302,55890.0,55889.0,0.00163]
[1725614351938,1.95108861,55890.0,55889.0,0.00163]
[1725614352161,2.07402859,55890.0,55889.0,0.00163]
[1725614352436,2.07402859,55890.0,55889.0,0.02352416]
[1725614352437,1.88412859,55890.0,55889.0,0.02352416]
[1725614352660,1.88412859,55890.0,55889.0,0.00163]
[1725614352889,2.06305059,55890.0,55889.0,0.00163]
[1725614353569,2.07005059,55890.0,55889.0,0.00263]
[1725614354453,2.07004035,55890.0,55889.0,0.00263]
[1725614354694,1.95761092,55890.0,55889.0,0.00263]
[1725614354884,1.97102021,55890.0,55889.0,0.00263]
[1725614355354,1.98527457,55890.0,55889.0,0.00363]
[1725614356082,1.99625257,55890.0,55889.0,0.00363]
[1725614356720,2.13034575,55890.0,55889.0,0.00363]
[1725614358745,2.35409757,55890.0,55889.0,0.00363]
[1725614358966,2.35409757,55890.0,55879.0,0.09861543]
[1725614358967,0.0536,55888.0,55879.0,0.00021543]
[1725614359185,0.77881756,55888.0,55879.0,0.00021543]
[1725614359404,1.55990645,55880.0,55879.0,0.00021543]
[1725614359647,2.09570815,55880.0,55879.0,0.00021543]
[1725614359860,2.55435794,55880.0,55879.0,0.00021543]
[1725614360362,2.50322671,55880.0,55879.0,0.00021543]
[1725614360593,2.42548592,55880.0,55879.0,0.00021543]
[1725614360859,2.42272445,55880.0,55879.0,0.00121543]
[1725614361109,2.03045888,55880.0,55879.0,0.00121543]
[1725614362280,2.01645888,55880.0,55879.0,0.00021543]
[1725614362498,2.04445888,55880.0,55879.0,0.00021543]
[1725614362710,2.06683494,55880.0,55879.0,0.00021543]
[1725614363392,2.01223494,55880.0,55879.0,0.00021543]
[1725614364536,2.01223494,55880.0,55879.0,0.00184743]
[1725614364770,2.09243576,55880.0,55879.0,0.00184743]
[1725614365695,2.01223494,55880.0,55879.0,0.00184743]
[1725614365919,2.09243576,55880.0,55879.0,0.00184743]
[1725614366110,2.01223494,55880.0,55879.0,0.00184743]
[1725614367186,2.01213494,55880.0,55879.0,0.00184743]
[1725614369127,2.09228588,55880.0,55879.0,0.00184743]
[1725614369338,2.01213494,55880.0,55879.0,0.00184743]
[1725614369966,2.09228588,55880.0,55879.0,0.00184743]
[1725614370199,2.01213494,55880.0,55879.0,0.00184743]
[1725614370395,2.06555938,55880.0,55879.0,0.00184743]
[1725614370600,2.01213494,55880.0,55879.0,0.00184743]
[1725614370832,1.99539151,55880.0,55879.0,0.00184743]
[1725614371044,2.01215427,55880.0,55879.0,0.00184743]
[1725614371703,2.02415427,55880.0,55879.0,0.00184743]
[1725614371931,2.4778945,55880.0,55879.0,0.00184743]
[1725614372355,2.58488293,55880.0,55879.0,0.00184743]
[1725614372814,2.4778945,55880.0,55879.0,0.00184743]
[1725614373052,2.8558035,55880.0,55879.0,0.00184743]
[1725614373301,2.93367758,55880.0,55879.0,0.00184743]
[1725614373525,2.94708734,55880.0,55879.0,0.00184743]
[1725614373739,2.000675,55875.0,55874.0,0.001632]
[1725614373977,2.46847901,55875.0,55874.0,0.001632]
[1725614374306,2.75460358,55875.0,55874.0,0.001632]
[1725614374544,3.09010401,55875.0,55874.0,0.001632]
[1725614374969,3.0566748,55875.0,55874.0,0.001632]
[1725614375238,2.92318725,55875.0,55874.0,0.001632]
[1725614375480,3.20889855,55875.0,55874.0,0.001632]
[1725614375727,2.25507645,55870.0,55869.0,0.001632]
[1725614375970,2.60822082,55870.0,55869.0,0.001632]
[1725614376192,2.52395955,55870.0,55869.0,0.001632]
[1725614376414,0.179028,55857.0,55856.0,0.1192]
[1725614376659,0.179028,55857.0,55852.0,0.65550515]
[1725614376660,0.179041,55853.0,55852.0,0.65550515]
[1725614376871,1.22973045,55853.0,55852.0,0.129]
[1725614377084,1.60457458,55853.0,55852.0,0.15103665]
[1725614377327,1.60457458,55853.0,55852.0,0.129]
[1725614377539,1.96265592,55853.0,55852.0,0.129]
[1725614378523,1.96665592,55853.0,55852.0,0.129]
[1725614379190,1.96965592,55853.0,55852.0,0.129]
[1725614380809,1.621427,55851.0,55850.0,0.001632]
[1725614381263,1.6251362,55851.0,55850.0,0.001632]
[1725614381482,1.8041832,55851.0,55850.0,0.001632]
[1725614382385,1.76118644,55851.0,55850.0,0.001632]
[1725614382791,1.77518644,55851.0,55850.0,0.001632]
[1725614383980,1.77718644,55851.0,55850.0,0.001632]
[1725614384227,1.77518644,55851.0,55850.0,0.001632]
[1725614385336,2.13328144,55851.0,55850.0,0.001632]
[1725614385845,2.18441267,55851.0,55850.0,0.001632]
[1725614386066,1.611891,55835.0,55834.0,0.2221]
[1725614386309,1.84641645,55835.0,55834.0,0.2221]
[1725614386546,1.94641645,55835.0,55834.0,0.2221]
[1725614386764,1.96941645,55835.0,55834.0,0.2221]
[1725614387025,2.03052768,55835.0,55834.0,0.2221]
[1725614387456,2.03452752,55835.0,55834.0,0.2221]
[1725614387931,2.03452751,55835.0,55834.0,0.2221]
[1725614388434,2.03452751,55835.0,55833.0,0.00164]
[1725614388435,1.611918,55834.0,55833.0,0.00164]
[1725614388657,1.75367082,55834.0,55833.0,0.00164]
[1725614389105,1.75167082,55834.0,55833.0,0.00164]
[1725614389583,1.72093979,55834.0,55833.0,0.00164]
[1725614390055,1.72793979,55834.0,55833.0,0.00164]
[1725614390278,1.68358155,55834.0,55833.0,0.00164]
[1725614390500,1.74978365,55834.0,55833.0,0.12014]
[1725614392109,1.70542541,55834.0,55833.0,0.12014]
[1725614394545,0.01,55827.0,55822.0,0.1213]
[1725614394755,0.537402,55824.0,55822.0,0.1213]
[1725614394972,1.98648427,55824.0,55822.0,0.1213]
[1725614395422,1.98648427,55824.0,55818.0,0.00164]
[1725614395639,1.98648427,55824.0,55818.0,0.12904]
[1725614396285,1.99648427,55824.0,55818.0,0.12904]
[1725614396749,1.99848427,55824.0,55818.0,0.12904]
[1725614397472,1.99848344,55824.0,55818.0,0.12904]
[1725614398127,1.99848344,55824.0,55818.0,0.00164]
[1725614398339,2.06161467,55824.0,55818.0,0.00164]
[1725614398578,2.01048344,55824.0,55818.0,0.00164]
[1725614400752,1.65221544,55824.0,55823.0,0.22344]
[1725614400987,1.62921544,55824.0,55823.0,0.22344]
[1725614401659,1.98748344,55824.0,55823.0,0.22344]
[1725614401876,1.98748344,55824.0,55823.0,0.00164]
[1725614401877,2.06161467,55824.0,55823.0,0.00164]
[1725614403481,2.01048344,55824.0,55823.0,0.00164]
[1725614404127,2.01049345,55824.0,55823.0,0.00164]
[1725614407372,2.01049437,55824.0,55823.0,0.00164]
[1725614409193,1.59683492,55824.0,55823.0,0.00164]
[1725614409448,2.01049437,55824.0,55823.0,0.00164]
[1725614410341,2.4298936,55824.0,55823.0,0.00164]
[1725614410584,2.4298936,55824.0,55818.0,0.00164]
[1725614410585,1.62235,55819.0,55818.0,0.00164]
[1725614410789,2.23393617,55819.0,55818.0,0.00164]
[1725614411003,2.3850674,55819.0,55818.0,0.00164]
[1725614411235,2.4484674,55819.0,55818.0,0.00164]
[1725614411442,1.84722145,55807.0,55806.0,0.2118]
[1725614411658,2.00404777,55807.0,55806.0,0.2118]
[1725614413732,2.00404571,55807.0,55806.0,0.2118]
[1725614414005,1.02976626,55807.0,55806.0,0.2118]
[1725614414224,1.26429171,55807.0,55806.0,0.2118]
[1725614414466,1.62266871,55807.0,55806.0,0.2118]
[1725614414907,1.98104697,55807.0,55806.0,0.2118]
[1725614415123,1.64476665,55807.0,55806.0,0.2118]
[1725614415364,1.66776665,55807.0,55806.0,0.2118]
[1725614415589,2.02614365,55807.0,55806.0,0.2118]
[1725614415805,1.66776665,55807.0,55806.0,0.2118]
[1725614416679,1.65100673,55807.0,55806.0,0.2118]
[1725614416889,1.66776691,55807.0,55806.0,0.2118]
[1725614417145,1.05186446,55807.0,55806.0,0.2118]
[1725614417791,1.41024146,55807.0,55806.0,0.2118]
[1725614418214,1.05186446,55807.0,55806.0,0.2118]
[1725614418636,1.64476691,55807.0,55806.0,0.2118]
[1725614420424,1.05186446,55807.0,55806.0,0.2118]
[1725614420851,1.41024146,55807.0,55806.0,0.2118]
[1725614421066,1.64476691,55807.0,55806.0,0.2118]
[1725614424563,2.00314391,55807.0,55806.0,0.2118]
[1725614424787,1.25441,55803.0,55802.0,0.2229]
[1725614424994,2.00480647,55803.0,55802.0,0.2229]
[1725614425708,2.08374339,55803.0,55802.0,0.2229]
[1725614426144,2.08374339,55803.0,55802.0,0.1242]
[1725614426348,2.08372526,55803.0,55802.0,0.1242]
[1725614426550,2.08772526,55803.0,55802.0,0.1242]
[1725614427000,2.08372526,55803.0,55802.0,0.1242]
[1725614427433,2.08772526,55803.0,55802.0,0.1242]
[1725614427659,2.08772526,55803.0,55799.0,0.0983]
[1725614427660,1.612845,55802.0,55799.0,0.0983]
[1725614427891,1.84931209,55802.0,55799.0,0.0983]
[1725614428980,1.77037517,55802.0,55801.0,0.2355321]
[1725614429884,1.5252825,55802.0,55801.0,0.2355321]
[1725614430100,1.7044875,55802.0,55801.0,0.2355321]
[1725614430560,1.7084875,55802.0,55801.0,0.2355321]
[1725614432097,1.7084875,55802.0,55801.0,0.0110321]
[1725614432513,1.7084875,55802.0,55801.0,0.2409321]
[1725614432729,1.69174545,55802.0,55801.0,0.2409321]
[1725614432931,1.70848683,55802.0,55801.0,0.2409321]
[1725614435909,1.70848895,55802.0,55801.0,0.2409321]
[1725614436546,1.76200129,55802.0,55801.0,0.2409321]
[1725614436756,1.76200129,55802.0,55801.0,0.2425661]
[1725614437414,1.35007895,55802.0,55801.0,0.2425661]
[1725614437665,1.40359129,55802.0,55801.0,0.2425661]
[1725614438576,1.32707895,55802.0,55801.0,0.2425661]
[1725614439670,1.40734747,55802.0,55801.0,0.2425661]
[1725614439904,1.40607054,55802.0,55801.0,0.2425661]
[1725614440744,1.53985141,55802.0,55801.0,0.2425661]
[1725614442479,1.52353184,55802.0,55801.0,0.2425661]
[1725614442671,1.54028143,55802.0,55801.0,0.2425661]
[1725614443499,1.39597271,55802.0,55801.0,0.2425661]
[1725614443901,1.44965545,55802.0,55801.0,0.2425661]
[1725614444562,1.39597271,55802.0,55801.0,0.2425661]
[1725614445664,1.44966809,55802.0,55801.0,0.2425661]
[1725614445892,1.09125809,55802.0,55801.0,0.2425661]
[1725614446124,1.03756271,55802.0,55801.0,0.2425661]
[1725614446776,1.09126166,55802.0,55801.0,0.2425661]
[1725614447016,1.07451175,55802.0,55801.0,0.2425661]
[1725614447244,1.02081312,55802.0,55801.0,0.2425661]
[1725614447477,1.1013556,55802.0,55801.0,0.2425661]
[1725614448357,1.03756323,55802.0,55801.0,0.2425661]
[1725614448571,0.67915323,55802.0,55801.0,0.2425661]
[1725614448995,0.67915323,55802.0,55801.0,0.2602104]
[1725614449203,0.67997023,55802.0,55801.0,0.2602104]
[1725614449835,1.03838023,55802.0,55801.0,0.2602104]
[1725614450698,0.02456711,55802.0,55801.0,0.4394184]
[1725614450927,0.02456711,55802.0,55801.0,1.23343438]
[1725614451445,0.02156711,55802.0,55801.0,1.23343438]
[1725614451663,0.01756711,55802.0,55801.0,1.23343438]
[1725614452133,0.01756711,55802.0,55801.0,0.4394184]
[1725614452368,0.01735142,55802.0,55801.0,0.4394184]
[1725614452789,0.01835142,55802.0,55801.0,0.4394184]
[1725614453023,0.001817,55802.0,55801.0,0.4394184]
[1725614453257,0.001817,55802.0,55801.0,0.7978344]
[1725614453705,0.002817,55802.0,55801.0,0.7978344]
[1725614454559,0.002817,55802.0,55801.0,1.1562504]
[1725614454788,0.002817,55802.0,55801.0,0.7978344]
[1725614457843,0.002817,55802.0,55801.0,0.87922982]
[1725614458059,0.002817,55802.0,55801.0,1.23764582]
[1725614462698,0.002817,55802.0,55801.0,0.34160582]
[1725614462945,0.01621416,55802.0,55801.0,0.7978344]
[1725614463181,0.002817,55802.0,55801.0,1.23901102]
[1725614463699,0.002817,55802.0,55801.0,1.83195247]
[1725614463914,0.01621354,55802.0,55801.0,1.83395247]
[1725614464373,0.03,55805.0,55804.0,1.357389]
[1725614464613,0.046745,55805.0,55804.0,1.56081357]
[1725614464849,0.046745,55805.0,55804.0,1.57845]
[1725614465961,0.047745,55805.0,55804.0,1.57845]
[1725614466212,0.047745,55805.0,55804.0,1.58045]
[1725614466674,0.031,55805.0,55804.0,1.57845]
[1725614466912,0.04874586,55805.0,55804.0,1.57845]
[1725614467389,0.04774586,55805.0,55804.0,1.57845]
[1725614467614,0.04874586,55805.0,55804.0,1.58045]
[1725614469885,0.032,55805.0,55804.0,1.58045]
[1725614470102,0.04874516,55805.0,55804.0,1.58045]
[1725614473213,0.04874059,55805.0,55804.0,1.58045]
[1725614473442,0.04955659,55805.0,55804.0,1.58045]
[1725614474568,0.04955659,55805.0,55804.0,0.505259]
[1725614474801,0.04955659,55805.0,55804.0,0.326061]
[1725614475025,0.04955659,55805.0,55804.0,0.505259]
[1725614475241,0.04955659,55805.0,55804.0,0.863656]
[1725614475457,0.04955659,55805.0,55804.0,1.222053]
[1725614476207,0.04955659,55805.0,55804.0,0.863656]
[1725614477649,0.04955659,55805.0,55804.0,1.222053]
[1725614478528,0.04955659,55805.0,55804.0,0.863656]
[1725614479199,0.032816,55805.0,55804.0,0.863656]
[1725614479441,0.04955198,55805.0,55804.0,0.863656]
[1725614480081,0.04955198,55805.0,55804.0,1.222053]
[1725614481151,0.04955198,55805.0,55804.0,0.863656]
[1725614482421,0.032816,55805.0,55804.0,0.863656]
[1725614482567,0.04955481,55805.0,55804.0,0.863656]
[1725614483424,0.04955481,55805.0,55804.0,1.58045]
[1725614484376,0.04955481,55805.0,55804.0,2.12435796]
[1725614484618,0.032816,55805.0,55804.0,1.76596096]
[1725614485520,0.032816,55805.0,55804.0,1.78796096]
[1725614485756,0.032816,55805.0,55804.0,2.14635796]
[1725614486231,0.032816,55805.0,55804.0,1.78796096]
[1725614490953,0.032816,55805.0,55804.0,1.78596096]
[1725614491926,0.032816,55805.0,55804.0,1.78796096]
[1725614496946,0.032816,55805.0,55804.0,1.78596096]
[1725614497126,0.031816,55805.0,55804.0,1.78596096]
[1725614497343,0.04856541,55805.0,55804.0,1.78596096]
[1725614497573,0.04856541,55805.0,55804.0,1.79896096]
[1725614497574,0.032816,55805.0,55804.0,1.79896096]
[1725614497795,0.04956599,55805.0,55804.0,1.79896096]
[1725614498043,0.031816,55805.0,55804.0,1.79696096]
[1725614498253,0.031816,55805.0,55804.0,1.80696096]
[1725614498254,0.032816,55805.0,55804.0,1.80696096]
[1725614501108,0.032816,55805.0,55804.0,1.80896096]
[1725614501969,0.032816,55805.0,55804.0,1.93426641]
[1725614513087,0.000817,55818.0,55804.0,1.93426641]
[1725614513088,0.000817,55818.0,55817.0,1.254095]
[1725614513317,0.0175629,55818.0,55817.0,1.73190755]
[1725614513560,0.000817,55818.0,55817.0,1.74950986]
[1725614513796,0.01756328,55818.0,55817.0,1.87410986]
[1725614514033,0.000817,55818.0,55817.0,1.87410986]
[1725614514276,0.01756172,55818.0,55817.0,1.87410986]
[1725614514518,0.01756327,55818.0,55817.0,1.88410986]
[1725614514754,0.000817,55818.0,55817.0,1.88410986]
[1725614514989,0.01856421,55818.0,55817.0,1.89710986]
[1725614515693,0.001817,55818.0,55817.0,1.89710986]
[1725614515915,0.001817,55818.0,55817.0,1.90310986]
[1725614516121,0.0185627,55818.0,55817.0,1.90310986]
[1725614517228,0.0185627,55818.0,55817.0,1.91510986]
[1725614517871,0.01856245,55818.0,55817.0,1.91510986]
[1725614518083,0.001817,55818.0,55817.0,1.91510986]
[1725614520047,0.001817,55818.0,55817.0,1.54679686]
[1725614520928,0.01856479,55818.0,55817.0,1.54679686]
[1725614521205,0.01856479,55818.0,55817.0,0.30585445]
[1725614521681,0.01856374,55818.0,55817.0,0.30585445]
[1725614522441,0.01856374,55818.0,55817.0,1.41879141]
[1725614522656,0.01856374,55818.0,55817.0,1.42079141]
[1725614522882,0.001817,55818.0,55817.0,1.77910441]
[1725614523106,0.001817,55818.0,55817.0,1.78910441]
[1725614523997,0.279116,55830.0,55826.0,0.179127]
[1725614524220,0.279116,55830.0,55825.0,0.17913]
[1725614524221,0.01675603,55829.0,55825.0,0.17913]
[1725614524460,0.01675603,55828.0,55827.0,0.01757608]
[1725614524684,0.01675603,55828.0,55826.0,0.09909117]
[1725614524913,0.279116,55830.0,55827.0,0.01757608]
[1725614525130,0.01675596,55829.0,55827.0,0.01757608]
[1725614525353,0.01675596,55828.0,55826.0,0.179127]
[1725614525563,0.01675596,55827.0,55826.0,0.179127]
[1725614525779,0.01675596,55827.0,55826.0,0.25939121]
[1725614526764,0.01675596,55827.0,55826.0,0.26139121]
[1725614526974,0.01675596,55827.0,55826.0,0.28196992]
[1725614527195,0.01675596,55827.0,55826.0,0.27696992]
[1725614527614,0.01675596,55827.0,55826.0,0.28396992]
[1725614528048,0.01675596,55827.0,55826.0,0.64922592]
[1725614528522,0.1,55831.0,55826.0,0.47009892]
[1725614528719,0.19587285,55830.0,55826.0,0.03157871]
[1725614528933,0.11675585,55829.0,55826.0,0.21070571]
[1725614529142,0.01675585,55828.0,55827.0,0.179124]
[1725614529356,0.01675585,55828.0,55827.0,0.37471012]
[1725614529562,0.01675585,55828.0,55827.0,0.73295912]
[1725614530022,0.01675585,55828.0,55827.0,1.8598207]
[1725614530418,0.01675585,55828.0,55827.0,1.8778207]
[1725614530879,0.01675585,55828.0,55827.0,1.8698207]
[1725614531289,0.319888,55839.0,55835.0,0.179098]
[1725614531500,0.319888,55839.0,55827.0,0.9861987]
[1725614531501,0.01676102,55838.0,55837.0,0.358185]
[1725614531714,0.01676102,55838.0,55837.0,0.25735999]
[1725614531938,0.01676102,55838.0,55837.0,0.09581785]
[1725614532978,0.01876102,55838.0,55837.0,0.09581785]
[1725614533703,0.01876102,55838.0,55837.0,1.21087985]